bitfinex-derivatives/quotes_SOLF0:USTF0_20251026
["timestamp","ask_amount","ask_price","bid_price","bid_amount"]
[1761479409209,4.73971521,197.45,197.3,2.71]
[1761479409404,8.55911377,197.45,197.28,2.58]
[1761479409715,4.73971521,197.42,197.26,4.58]
[1761479409912,4.73971521,197.42,197.36,0.03744233]
[1761479410103,3.81939856,197.43,197.36,0.03744233]
[1761479410104,4.73971521,197.43,197.36,0.03744233]
[1761479410308,3.81939856,197.42,197.36,0.03744233]
[1761479410514,4.73971521,197.46,197.32,2.72]
[1761479410714,3.81939856,197.45,197.32,2.72]
[1761479410918,8.55911377,197.48,197.32,2.72]
[1761479411413,3.81939856,197.47,197.37,0.03801812]
[1761479411619,3.81939856,197.49,197.37,2.75801812]
[1761479411817,4.73971521,197.53,197.38,2.72]
[1761479412019,3.81939856,197.57,197.38,2.72]
[1761479412020,3.81939856,197.52,197.38,2.72]
[1761479412314,3.81939856,197.53,197.38,2.72]
[1761479412506,3.81939856,197.54,197.38,2.72]
[1761479412707,3.81939856,197.55,197.38,2.72]
[1761479412911,3.81939856,197.57,197.39,3.48]
[1761479413112,4.73971521,197.59,197.44,2.72]
[1761479413312,3.81939856,197.58,197.44,2.72]
[1761479413509,3.81939856,197.59,197.44,2.72]
[1761479413820,4.73971521,197.6,197.44,2.72]
[1761479413821,8.55911377,197.6,197.44,2.72]
[1761479414120,8.55911377,197.59,197.44,2.72]
[1761479414320,17.02,197.61,197.44,2.72]
[1761479414321,3.81939856,197.58,197.44,2.72]
[1761479414521,8.55911377,197.59,197.37,2.72]
[1761479414817,4.68593894,197.56,197.37,2.72]
[1761479415116,0.03256706,197.53,197.37,67.06]
[1761479415320,0.03256706,197.53,197.38,2.72]
[1761479415921,8.47540705,197.54,197.33,2.72]
[1761479416121,8.47540705,197.53,197.33,2.72]
[1761479416333,4.68593894,197.51,197.33,2.72]
[1761479416620,0.03719525,197.47,197.33,2.72]
[1761479417426,4.68593894,197.51,197.33,2.72]
[1761479418115,8.47540705,197.52,197.33,2.72]
[1761479418318,0.03403831,197.42,197.33,2.72]
[1761479420323,0.03403831,197.42,197.34,67.04]
[1761479420622,0.03403831,197.42,197.35,64.32]
[1761479421119,0.03403831,197.42,197.34,2.72]
[1761479421120,8.47540705,197.53,197.34,67.04]
[1761479421326,4.68593894,197.53,197.34,67.04]
[1761479421822,4.68593894,197.53,197.35,2.72]
[1761479422024,0.03469408,197.4,197.35,2.72]
[1761479422524,3.78946811,197.53,197.35,2.72]
[1761479422730,4.68593894,197.57,197.37,2.72]
[1761479423024,4.68593894,197.57,197.38,64.3]
[1761479423213,4.68593894,197.57,197.39,2.72]
[1761479423613,3.78946811,197.56,197.39,2.72]
[1761479423815,4.68593894,197.58,197.39,2.72]
[1761479424922,3.78946811,197.57,197.47,0.03419746]
[1761479425225,4.68593894,197.59,197.47,0.03419746]
[1761479425825,4.68593894,197.59,197.42,2.72]
[1761479426624,4.68593894,197.59,197.51,0.03642192]
[1761479426831,8.47540705,197.58,197.51,0.03642192]
[1761479427027,4.68593894,197.57,197.51,0.03642192]
[1761479427326,4.68593894,197.58,197.51,0.03642192]
[1761479427520,8.47540705,197.57,197.51,0.03642192]
[1761479427720,4.68593894,197.57,197.42,2.72]
[1761479427917,3.78946811,197.56,197.42,2.72]
[1761479428119,4.68593894,197.58,197.42,2.72]
[1761479428339,4.68593894,197.59,197.42,2.72]
[1761479428630,4.68593894,197.59,197.52,0.03546076]
[1761479429030,8.47540705,197.58,197.42,2.72]
[1761479429223,4.68593894,197.58,197.42,2.72]
[1761479429426,0.03376119,197.52,197.42,2.72]
[1761479436733,0.03376119,197.52,197.43,2.72]
[1761479437936,0.03376119,197.52,197.31,2.72]
[1761479438441,4.71970013,197.52,197.33,2.69]
[1761479438740,3.78946811,197.51,197.33,2.69]
[1761479439042,4.68593894,197.55,197.33,2.69]
[1761479439339,4.68593894,197.55,197.34,64.24]
[1761479439535,0.03432656,197.44,197.35,2.69]
[1761479440240,0.03432656,197.44,197.37,2.69]
[1761479448647,3.82379467,197.44,197.37,2.69]
[1761479448849,0.03432656,197.44,197.37,2.69]
[1761479449350,3.78946811,197.43,197.37,2.69]
[1761479450351,3.78946811,197.42,197.37,2.69]
[1761479450561,3.78946811,197.43,197.37,2.69]
[1761479451358,3.78946811,197.42,197.32,2.69]
[1761479451565,3.78946811,197.43,197.33,66.89]
[1761479451756,3.78946811,197.42,197.33,2.69]
[1761479451954,3.78946811,197.41,197.33,2.69]
[1761479452259,3.78946811,197.4,197.33,2.69]
[1761479452564,3.78946811,197.39,197.33,2.69]
[1761479452863,3.78946811,197.42,197.33,2.69]
[1761479453066,0.03331395,197.39,197.33,2.69]
[1761479454069,3.78946811,197.44,197.33,2.69]
[1761479454360,3.78946811,197.47,197.33,2.69]
[1761479454553,3.78946811,197.48,197.33,2.69]
[1761479454756,3.78946811,197.47,197.35,2.69]
[1761479454962,3.78946811,197.49,197.35,2.69]
[1761479455255,3.78946811,197.48,197.35,2.69]
[1761479455462,3.78946811,197.49,197.35,2.69]
[1761479455659,3.78946811,197.48,197.35,2.69]
[1761479455860,3.78946811,197.49,197.4,2.72561507]
[1761479456165,3.78946811,197.48,197.4,2.72561507]
[1761479456365,3.78946811,197.49,197.4,2.72561507]
[1761479456559,3.78946811,197.48,197.4,2.72561507]
[1761479456755,3.78946811,197.47,197.4,2.72561507]
[1761479457066,3.78946811,197.48,197.4,2.72561507]
[1761479457561,3.78946811,197.49,197.4,2.72561507]
[1761479457765,3.78946811,197.48,197.4,2.72561507]
[1761479457958,3.78946811,197.49,197.4,2.72561507]
[1761479458465,8.47540705,197.5,197.4,2.72561507]
[1761479458667,3.78946811,197.49,197.4,2.72561507]
[1761479459067,3.78946811,197.49,197.4,0.03561507]
[1761479459363,3.78946811,197.48,197.36,66.87]
[1761479459566,3.78946811,197.49,197.37,2.69]
[1761479459754,3.78946811,197.48,197.37,2.69]
[1761479459960,3.78946811,197.49,197.37,2.69]
[1761479460160,3.78946811,197.48,197.43,0.03362734]
[1761479461055,3.78946811,197.47,197.43,0.03362734]
[1761479461256,3.78946811,197.46,197.43,0.03362734]
[1761479461558,3.78946811,197.47,197.43,0.03362734]
[1761479461765,3.78946811,197.46,197.43,0.03362734]
[1761479461963,3.78946811,197.47,197.43,0.03362734]
[1761479462261,3.78946811,197.46,197.43,0.03362734]
[1761479462569,3.78946811,197.45,197.34,2.77]
[1761479462768,3.78946811,197.46,197.34,2.77]
[1761479463563,8.47540705,197.49,197.36,2.77]
[1761479463766,3.78946811,197.48,197.36,2.77]
[1761479464061,3.78946811,197.47,197.36,2.77]
[1761479464265,0.03695509,197.42,197.36,2.77]
[1761479464770,0.03695509,197.42,197.31,2.77]
[1761479465657,3.78946811,197.42,197.31,2.77]
[1761479465857,3.78946811,197.41,197.25,42.98]
[1761479466070,3.78946811,197.41,197.26,2.77]
[1761479466257,0.03438353,197.38,197.26,2.77]
[1761479467069,3.78946811,197.41,197.26,2.77]
[1761479467273,3.73419894,197.41,197.26,2.77]
[1761479467871,0.03653764,197.34,197.26,2.77]
[1761479471566,3.73419894,197.41,197.29,2.68]
[1761479471870,3.73419894,197.44,197.29,2.68]
[1761479472067,3.73419894,197.43,197.29,2.68]
[1761479472269,3.73419894,197.44,197.29,2.68]
[1761479472475,3.73419894,197.45,197.29,2.68]
[1761479472974,3.73419894,197.46,197.3,62.0]
[1761479473176,3.73419894,197.45,197.35,0.03841381]
[1761479473374,3.73419894,197.46,197.36,2.68]
[1761479473564,3.73419894,197.45,197.36,2.68]
[1761479473764,3.73419894,197.46,197.36,2.68]
[1761479474278,3.73419894,197.47,197.36,2.68]
[1761479474776,3.73419894,197.47,197.39,0.03220325]
[1761479475078,3.73419894,197.5,197.4,2.68]
[1761479475270,3.73419894,197.49,197.4,2.68]
[1761479475471,3.73419894,197.5,197.4,2.68]
[1761479475671,3.73419894,197.49,197.4,2.68]
[1761479475873,4.72537952,197.51,197.4,2.68]
[1761479475874,3.73419894,197.5,197.4,2.68]
[1761479476071,3.73419894,197.49,197.4,2.68]
[1761479476472,3.73419894,197.48,197.4,2.68]
[1761479476677,4.72537952,197.5,197.43,0.03873227]
[1761479476678,3.73419894,197.49,197.43,0.03873227]
[1761479476877,3.73419894,197.48,197.43,0.03873227]
[1761479477073,3.73419894,197.49,197.43,2.71873227]
[1761479477378,3.73419894,197.48,197.43,2.71873227]
[1761479477575,3.73419894,197.49,197.43,2.71873227]
[1761479477876,3.73419894,197.48,197.43,2.71873227]
[1761479478176,3.73419894,197.49,197.43,2.71873227]
[1761479478369,3.73419894,197.48,197.43,2.71873227]
[1761479478571,3.73419894,197.47,197.43,0.03873227]
[1761479478771,3.73419894,197.48,197.43,0.03873227]
[1761479478971,3.73419894,197.47,197.43,0.03873227]
[1761479479169,3.73419894,197.46,197.43,0.03873227]
[1761479479373,3.73419894,197.45,197.38,2.68]
[1761479479576,3.73419894,197.46,197.38,2.68]
[1761479480079,3.73419894,197.49,197.38,2.68]
[1761479480274,3.73419894,197.48,197.43,0.03332394]
[1761479480469,3.73419894,197.49,197.43,2.71332394]
[1761479480670,3.73419894,197.48,197.43,2.71332394]
[1761479480878,3.73419894,197.5,197.43,2.71332394]
[1761479481076,3.73419894,197.49,197.43,2.71332394]
[1761479481277,3.73419894,197.48,197.43,2.71332394]
[1761479481474,3.73419894,197.49,197.43,2.68]
[1761479481674,3.73419894,197.48,197.43,2.68]
[1761479481875,8.45957846,197.5,197.43,2.68]
[1761479482074,3.73419894,197.49,197.43,2.68]
[1761479482280,3.73419894,197.48,197.44,0.03727368]
[1761479482481,3.73419894,197.49,197.44,0.03727368]
[1761479482778,3.73419894,197.48,197.44,0.03727368]
[1761479482986,3.73419894,197.49,197.44,0.03727368]
[1761479483186,3.73419894,197.48,197.44,0.03727368]
[1761479483385,3.73419894,197.49,197.44,0.03727368]
[1761479483686,3.73419894,197.48,197.44,0.03727368]
[1761479483877,3.73419894,197.49,197.44,0.03727368]
[1761479484082,3.73419894,197.48,197.44,2.71727368]
[1761479484384,3.73419894,197.5,197.44,0.03727368]
[1761479484587,3.73419894,197.49,197.44,0.03727368]
[1761479484888,3.73419894,197.48,197.44,0.03727368]
[1761479485086,3.73419894,197.5,197.44,2.71727368]
[1761479485381,3.73419894,197.49,197.44,2.71727368]
[1761479485581,4.72537952,197.51,197.44,2.71727368]
[1761479485582,3.73419894,197.5,197.44,2.71727368]
[1761479485789,3.87890188,197.49,197.44,2.71727368]
[1761479485987,3.87890188,197.5,197.44,2.71727368]
[1761479486188,3.87890188,197.49,197.44,2.71727368]
[1761479486393,3.87890188,197.5,197.44,2.71727368]
[1761479486583,3.87890188,197.49,197.44,2.71727368]
[1761479486891,3.87890188,197.5,197.44,2.71727368]
[1761479487185,3.87890188,197.51,197.44,2.71727368]
[1761479487390,3.87890188,197.5,197.44,2.71727368]
[1761479487590,3.87890188,197.52,197.44,2.71727368]
[1761479487791,3.87890188,197.51,197.44,2.68]
[1761479487982,3.87890188,197.53,197.44,2.68]
[1761479488186,3.87890188,197.52,197.44,2.68]
[1761479488388,3.87890188,197.53,197.44,2.68]
[1761479488590,3.87890188,197.52,197.46,2.71670768]
[1761479488792,3.87890188,197.53,197.46,2.71670768]
[1761479489093,3.87890188,197.54,197.46,2.71670768]
[1761479489896,3.87890188,197.53,197.46,2.71670768]
[1761479490094,3.87890188,197.54,197.46,2.71670768]
[1761479490492,3.87890188,197.55,197.46,2.71670768]
[1761479491392,4.72538295,197.57,197.46,2.71670768]
[1761479491393,3.87890188,197.54,197.46,0.03670768]
[1761479491594,3.87890188,197.55,197.46,0.03670768]
[1761479491797,3.87890188,197.54,197.46,0.03670768]
[1761479491990,3.87890188,197.55,197.46,0.03670768]
[1761479492190,3.87890188,197.54,197.42,2.68]
[1761479492393,3.87890188,197.55,197.42,2.68]
[1761479492995,3.87890188,197.55,197.49,0.03335715]
[1761479494698,3.87890188,197.56,197.49,0.03335715]
[1761479495592,4.72538295,197.57,197.49,0.03335715]
[1761479495794,3.87890188,197.56,197.49,0.03335715]
[1761479496299,4.72538295,197.57,197.49,0.03335715]
[1761479496792,8.60428483,197.57,197.49,0.03335715]
[1761479497093,3.87890188,197.56,197.49,0.03335715]
[1761479497292,4.72538295,197.58,197.49,0.03335715]
[1761479497492,8.60428483,197.57,197.49,0.03335715]
[1761479497693,8.60428483,197.56,197.49,0.03335715]
[1761479497894,3.87890188,197.55,197.44,2.68]
[1761479498393,4.72538295,197.56,197.44,2.68]
[1761479498590,3.87890188,197.55,197.44,2.68]
[1761479498790,8.60428483,197.55,197.51,0.03489656]
[1761479498991,4.72538295,197.55,197.51,0.03489656]
[1761479499196,4.72538295,197.55,197.51,2.74489656]
[1761479499402,3.87890188,197.54,197.51,2.74489656]
[1761479499598,3.87890188,197.58,197.51,2.74489656]
[1761479499794,8.60428483,197.58,197.51,2.74489656]
[1761479500098,4.72538295,197.58,197.51,2.74489656]
[1761479500298,4.72538295,197.58,197.41,2.71]
[1761479500501,8.60428483,197.58,197.41,2.71]
[1761479500699,4.72538295,197.58,197.42,2.71]
[1761479501200,3.87890188,197.57,197.53,0.0355219]
[1761479501403,3.87890188,197.56,197.53,0.0355219]
[1761479501694,3.87890188,197.62,197.46,2.71]
[1761479501901,3.87890188,197.61,197.46,2.71]
[1761479502101,3.87890188,197.6,197.46,2.71]
[1761479502290,3.87890188,197.59,197.46,2.71]
[1761479502497,3.87890188,197.58,197.53,0.03515402]
[1761479502693,3.87890188,197.57,197.53,0.03515402]
[1761479502899,3.87890188,197.56,197.53,0.03515402]
[1761479503100,3.87890188,197.55,197.53,0.03515402]
[1761479503408,3.87890188,197.61,197.53,0.03515402]
[1761479503604,3.87890188,197.6,197.46,2.71]
[1761479503903,3.87890188,197.59,197.46,2.71]
[1761479504107,3.87890188,197.58,197.46,2.71]
[1761479504303,3.87890188,197.57,197.55,0.03705499]
[1761479504502,3.87890188,197.56,197.55,0.03705499]
[1761479504700,3.87890188,197.62,197.55,0.03705499]
[1761479504900,3.87890188,197.61,197.55,0.03705499]
[1761479505201,3.87890188,197.6,197.45,2.71]
[1761479505401,3.87890188,197.59,197.45,2.71]
[1761479505603,3.87890188,197.58,197.45,2.71]
[1761479505806,3.87890188,197.57,197.45,2.71]
[1761479506106,3.87890188,197.56,197.45,2.71]
[1761479506306,3.87890188,197.55,197.45,2.71]
[1761479506496,3.91321894,197.54,197.38,2.71]
[1761479506700,0.03431706,197.54,197.38,2.71]
[1761479507103,3.87890188,197.53,197.38,2.71]
[1761479507495,3.87890188,197.59,197.38,2.71]
[1761479507698,4.72538295,197.57,197.38,2.71]
[1761479507901,0.03433842,197.47,197.38,2.71]
[1761479514213,0.03433842,197.47,197.38,64.71]
[1761479514418,9.50668171,197.61,197.38,64.71]
[1761479514419,2.67,197.68,197.45,15.21]
[1761479514710,2.67,197.68,197.42,33.48]
[1761479514711,2.67,197.68,197.47,2.71]
[1761479515305,2.67,197.68,197.48,63.94]
[1761479515606,2.67,197.68,197.33,12.30495568]
[1761479515607,2.67,197.68,197.5,2.71]
[1761479516010,2.67,197.68,197.56,0.0322157]
[1761479516905,2.67,197.68,197.53,2.71]
[1761479517616,2.67,197.68,197.6,0.0357161]
[1761479519411,2.67,197.73,197.6,2.7457161]
[1761479520309,2.67,197.73,197.6,2.71]
[1761479520914,2.53274272,197.74,197.65,0.0386163]
[1761479521115,2.53274272,197.74,197.66,2.71]
[1761479521918,2.53274272,197.74,197.68,2.65]
[1761479522616,2.53274272,197.74,197.68,2.68829517]
[1761479523619,2.53274272,197.74,197.69,1.02]
[1761479523816,2.53274272,197.74,197.69,2.65]
[1761479524119,2.53274272,197.74,197.68,0.03829517]
[1761479524713,2.53274272,197.74,197.69,63.88]
[1761479524910,2.53274272,197.74,197.7,62.0]
[1761479526808,2.53274272,197.74,197.68,0.03829517]
[1761479529625,2.53274272,197.74,197.69,1.02]
[1761479529828,2.53274272,197.74,197.7,62.0]
[1761479532828,2.53274272,197.74,197.68,0.03829517]
[1761479533530,2.53274272,197.74,197.69,63.8]
[1761479534927,2.53274272,197.74,197.7,63.8]
[1761479535131,2.53274272,197.74,197.68,0.03829517]
[1761479535324,2.53274272,197.74,197.69,63.8]
[1761479535523,5.27274272,197.74,197.69,63.8]
[1761479535730,2.53274272,197.74,197.68,0.03829517]
[1761479536229,2.53274272,197.74,197.68,63.81829517]
[1761479538024,5.27274272,197.74,197.68,0.03829517]
[1761479538226,2.74,197.73,197.68,0.03829517]
[1761479538532,2.74,197.73,197.59,4.5542]
[1761479538732,2.74,197.73,197.6,63.78]
[1761479539429,2.74,197.71,197.6,63.78]
[1761479539631,2.74,197.71,197.55,4.5552]
[1761479539836,2.74,197.71,197.5,4.16]
[1761479540038,2.74,197.71,197.51,3.12]
[1761479540337,2.74,197.71,197.52,3.12]
[1761479540534,2.74,197.71,197.52,2.34]
[1761479541036,2.77207746,197.63,197.52,2.34]
[1761479542135,2.77207746,197.63,197.53,4.5558]
[1761479543129,2.77207746,197.63,197.48,4.5569]
[1761479543935,2.74,197.63,197.48,4.5569]
[1761479544134,2.74,197.63,197.46,38.68]
[1761479544730,0.03200592,197.57,197.46,38.68]
[1761479545635,2.74,197.58,197.46,38.68]
[1761479545834,2.74,197.71,197.46,38.68]
[1761479546136,2.74,197.7,197.46,38.68]
[1761479546335,0.03449634,197.53,197.47,62.0]
[1761479546526,0.03449634,197.53,197.47,66.557]
[1761479546732,0.03449634,197.53,197.46,38.68]
[1761479547137,2.74,197.56,197.46,38.68]
[1761479547839,2.77232696,197.51,197.4,4.5586]
[1761479548138,2.77232696,197.51,197.37,43.8194]
[1761479548637,2.74,197.51,197.37,39.26]
[1761479549336,0.03609227,197.46,197.37,39.26]
[1761479549838,0.03609227,197.46,197.38,62.0]
[1761479550439,2.77609227,197.46,197.32,68.3406]
[1761479550642,2.77609227,197.46,197.32,63.78]
[1761479551037,2.77609227,197.46,197.35,4.5599]
[1761479551236,2.74,197.46,197.32,63.78]
[1761479552139,0.03506411,197.42,197.32,63.78]
[1761479552342,2.77506411,197.42,197.32,63.78]
[1761479552640,0.03506411,197.42,197.32,63.78]
[1761479553037,2.74,197.47,197.32,63.78]
[1761479553434,2.74,197.47,197.32,125.78]
[1761479553740,1.54,197.55,197.32,125.78]
[1761479553741,0.03295113,197.39,197.32,125.78]
[1761479554639,2.74,197.42,197.32,63.78]
[1761479555239,2.74,197.42,197.16,202.38]
[1761479555439,0.03890466,197.37,197.25,4.5622]
[1761479555643,0.03890466,197.37,197.26,63.8]
[1761479556143,2.74,197.39,197.26,63.8]
[1761479556839,0.03748424,197.33,197.26,63.8]
[1761479557242,0.03748424,197.33,197.27,4.5618]
[1761479560256,0.03748424,197.33,197.28,63.8]
[1761479560546,0.03748424,197.33,197.29,4.5614]
[1761479563055,0.03748424,197.33,197.28,63.8]
[1761479564254,0.03748424,197.33,197.26,66.5619]
[1761479564450,0.03748424,197.33,197.27,63.8]
[1761479565047,0.03748424,197.33,197.28,63.8]
[1761479565354,0.03748424,197.33,197.29,63.8]
[1761479566452,2.66748424,197.33,197.23,4.5627]
[1761479566650,2.66748424,197.33,197.24,63.8]
[1761479567361,2.63,197.33,197.24,63.8]
[1761479568252,0.03496419,197.3,197.24,63.8]
[1761479570451,2.63,197.46,197.24,63.8]
[1761479571061,2.63,197.46,197.3,4.5611]
[1761479571361,2.63,197.46,197.31,47.88]
[1761479572466,2.63,197.46,197.37,0.03418057]
[1761479575282,2.63,197.45,197.37,0.03418057]
[1761479576083,2.63,197.45,197.3,65.0811]
[1761479576385,2.63,197.45,197.3,60.52]
[1761479576980,2.63,197.45,197.39,0.03429274]
[1761479578068,2.63,197.45,197.26,4.5621]
[1761479578274,0.03609826,197.44,197.27,35.84]
[1761479578484,2.63,197.43,197.27,35.84]
[1761479578678,2.63,197.43,197.28,4.5618]
[1761479579978,0.0349133,197.37,197.28,4.5618]
[1761479580979,0.0349133,197.37,197.29,62.0]
[1761479581185,0.0349133,197.37,197.28,4.5618]
[1761479584181,0.0349133,197.37,197.29,62.0]
[1761479585588,0.0349133,197.37,197.29,66.5614]
[1761479585784,0.0349133,197.37,197.29,62.0]
[1761479586188,0.0349133,197.37,197.31,4.5609]
[1761479586395,0.0349133,197.37,197.29,62.0]
[1761479587390,0.0349133,197.37,197.33,4.5604]
[1761479587790,0.0349133,197.37,197.29,62.0]
[1761479588594,0.0049133,197.37,197.35,4.56]
[1761479588790,0.0049133,197.37,197.36,63.76]
[1761479591598,0.0049133,197.37,197.36,63.74]
[1761479592793,0.0049133,197.37,197.36,64.76]
[1761479593093,0.0049133,197.37,197.36,63.74]
[1761479598988,0.0049133,197.37,197.36,125.74]
[1761479599185,0.0049133,197.37,197.36,125.7]
[1761479599399,0.0049133,197.37,197.36,62.0]
[1761479599593,0.0049133,197.37,197.36,125.7]
[1761479599897,0.0049133,197.37,197.36,62.0]
[1761479600095,0.0049133,197.37,197.36,125.7]
[1761479602293,0.0049133,197.37,197.36,126.72]
[1761479602599,0.0049133,197.37,197.36,125.7]
[1761479606301,0.0049133,197.37,197.36,62.0]
[1761479606597,0.0049133,197.37,197.36,125.68]
[1761479607104,0.0049133,197.37,197.36,125.66]
[1761479611594,0.0049133,197.37,197.36,62.0]
[1761479611794,0.0049133,197.37,197.36,125.66]
[1761479612992,0.0049133,197.37,197.36,62.0]
[1761479613199,0.0049133,197.37,197.36,125.64]
[1761479613498,2.8349133,197.37,197.36,63.64]
[1761479614008,0.0049133,197.37,197.36,63.64]
[1761479616497,0.0049133,197.37,197.36,125.64]
[1761479620505,0.0049133,197.37,197.36,126.66]
[1761479621206,0.0049133,197.37,197.36,62.0]
[1761479621400,0.0049133,197.37,197.36,125.62]
[1761479622600,0.0049133,197.37,197.36,63.62]
[1761479623801,0.0049133,197.37,197.35,4.56]
[1761479624106,0.0049133,197.37,197.27,15.21]
[1761479624312,0.0049133,197.37,197.28,63.62]
[1761479625015,2.78,197.46,197.28,207.05614387]
[1761479625711,2.78,197.46,197.29,62.0]
[1761479626112,2.78,197.45,197.34,4.5603]
[1761479626308,2.78,197.44,197.35,63.62]
[1761479626509,2.78,197.44,197.36,63.6]
[1761479629612,2.78,197.53,197.36,63.6]
[1761479629811,2.78,197.51,197.36,63.6]
[1761479630108,2.78,197.5,197.36,63.6]
[1761479630312,2.78,197.49,197.36,63.6]
[1761479630511,2.78,197.51,197.36,63.6]
[1761479630712,2.78,197.5,197.36,63.6]
[1761479630904,2.78,197.49,197.36,63.6]
[1761479631110,7.99051357,197.52,197.36,63.6]
[1761479631405,2.78,197.5,197.36,63.6]
[1761479631608,2.78,197.49,197.36,63.6]
[1761479631809,2.78,197.48,197.36,63.6]
[1761479632012,2.78,197.47,197.36,63.6]
[1761479632611,2.78,197.47,197.37,62.0]
[1761479633106,2.78,197.46,197.37,62.0]
[1761479633504,2.78,197.46,197.36,63.6]
[1761479634317,2.78,197.46,197.37,63.58]
[1761479634610,2.78,197.45,197.37,63.58]
[1761479634818,2.78,197.44,197.38,63.58]
[1761479637119,2.78,197.49,197.38,63.58]
[1761479637320,2.78,197.48,197.38,63.58]
[1761479637511,2.78,197.47,197.38,63.58]
[1761479637713,2.78,197.46,197.38,63.58]
[1761479638312,9.1095,197.59,197.38,63.58]
[1761479638313,2.78,197.51,197.39,4.559]
[1761479638518,2.78,197.5,197.38,63.58]
[1761479638721,2.78,197.49,197.38,63.58]
[1761479638922,2.78,197.48,197.38,63.58]
[1761479639912,2.78,197.48,197.39,4.559]
[1761479640222,2.78,197.48,197.38,63.58]
[1761479641518,2.78,197.48,197.38,68.1392]
[1761479644027,2.78,197.48,197.38,63.58]
[1761479644229,2.78,197.48,197.36,66.5599]
[1761479644533,2.78,197.48,197.37,63.54]
[1761479644727,2.78,197.48,197.36,66.5599]
[1761479645026,2.78,197.48,197.38,63.54]
[1761479645222,2.78,197.48,197.36,66.5599]
[1761479645223,2.78,197.48,197.39,63.54]
[1761479645933,2.78,197.48,197.38,63.54]
[1761479646226,2.77,197.47,197.38,63.54]
[1761479646526,2.77,197.46,197.38,63.54]
[1761479647328,2.77,197.46,197.38,63.52]
[1761479648033,2.77,197.45,197.38,63.52]
[1761479648232,6.3957004,197.45,197.32,63.52]
[1761479648537,2.77,197.43,197.32,63.52]
[1761479648825,2.58,197.42,197.32,63.52]
[1761479649223,2.58,197.42,197.33,4.5606]
[1761479649422,10.57725883,197.45,197.32,63.52]
[1761479649631,2.58,197.51,197.32,63.52]
[1761479650023,6.95100717,197.5,197.32,63.52]
[1761479650329,2.58,197.48,197.32,63.52]
[1761479650826,2.58,197.47,197.36,4.5597]
[1761479651223,2.58,197.47,197.32,63.52]
[1761479651224,2.58,197.47,197.34,4.5603]
[1761479651426,2.58,197.47,197.32,63.52]
[1761479651931,2.58,197.46,197.32,63.52]
[1761479652130,2.58,197.45,197.33,4.5604]
[1761479652530,2.58,197.45,197.34,125.52]
[1761479652929,2.58,197.45,197.34,63.52]
[1761479654623,2.58,197.44,197.34,63.52]
[1761479654824,2.58,197.43,197.34,63.52]
[1761479655029,2.58,197.42,197.34,63.5]
[1761479655233,2.58,197.41,197.34,63.5]
[1761479655630,2.58,197.41,197.28,206.93614387]
[1761479656135,3.62523307,197.4,197.28,63.5]
[1761479656330,2.58,197.38,197.28,63.5]
[1761479656524,2.58,197.37,197.25,63.5]
[1761479656724,3.62523307,197.37,197.25,63.5]
[1761479656927,2.58,197.36,197.25,63.5]
[1761479657432,2.58,197.35,197.25,63.5]
[1761479659233,2.58,197.35,197.26,63.5]
[1761479662535,2.58,197.39,197.26,63.5]
[1761479663442,2.58,197.44,197.26,63.5]
[1761479663649,2.58,197.5,197.26,63.5]
[1761479663937,2.58,197.48,197.26,63.5]
[1761479664137,2.58,197.47,197.26,63.5]
[1761479664442,2.58,197.46,197.26,63.5]
[1761479665046,2.58,197.46,197.29,4.5613]
[1761479665833,2.58,197.45,197.29,4.5613]
[1761479666034,3.76729332,197.45,197.29,4.5613]